[Event "EWCCC Online Final 2020"]
[Site "Online"]
[Date "2020.12.21"]
[Round "1.4"]
[White "Gunina, Valentina"]
[Black "Mammadzada, Gunay"]
[Result "0-1"]
[ECO "D11"]
[WhiteElo "2451"]
[BlackElo "2443"]
[Annotator "RC"]
[PlyCount "92"]
[EventDate "2020.12.19"]
[EventType "team-tourn"]
[EventCountry "NET"]
[SourceTitle "playchess.com"]
[Source "ChessBase"]
[SourceQuality "1"]
[TimeControl "900+5"]

1. d4 {[%emt 0:00:02]} d5 {[%emt 0:00:33]} 2. c4 {[%emt 0:00:04]} c6 {[%emt 0:00:02]} 3. Nf3 {[%emt 0:00:02]} Nf6 {[%emt 0:00:03]} 4. g3 {[%emt 0:00:02]} dxc4 {[%emt 0:00:05]} 5. Bg2 {[%emt 0:00:02]} g6 {[%emt 0:00:02]} 6. O-O {[%emt 0:00:01]} Bg7 {[%emt 0:00:02]} 7. Qc2 {[%emt 0:00:20]} b5 {[%emt 0:00:57]} 8. a4 {[%emt 0:00:26]} Bb7 {[%emt 0:00:22]} 9. b3 {[%emt 0:00:14]} cxb3 {[%emt 0:00:27]} 10. Qxb3 {[%emt 0:00:01]} a6 {[%emt 0:00:42]} 11. axb5 {[%emt 0:00:24]} cxb5 {[%emt 0:01:35]} 12. Ne5 {[%emt 0:02:35]} Bd5 {[%emt 0:00:04]} 13. Bxd5 {[%emt 0:00:01]} Qxd5 {[%emt 0:00:15]} 14. Qa3 {[%emt 0:00:03]} Qxd4 {[%emt 0:01:53]} 15. Bb2 {[%emt 0:04:55]} Qd6 {[%emt 0:00:08]} 16. Qb3 {[%emt 0:00:49]} Qd5 {[%emt 0:02:20]} 17. Qxd5 {[%emt 0:00:25]} Nxd5 {[%emt 0:00:02]} 18. Rd1 {[%emt 0:00:01]} Nb6 {[%emt 0:00:54]} 19. Na3 {[%emt 0:02:24]} O-O {[%emt 0:01:06]} 20. Bd4 {[%emt 0:00:05]} Na4 {[%emt 0:00:01]} 21. Rac1 {[%emt 0:00:23]} Rd8 {[%emt 0:00:41]} 22. Ba1 {[%emt 0:00:16]} Re8 {[%emt 0:01:00]} 23. Rc7 {[%emt 0:00:20]} Nb6 {[%emt 0:01:18]} 24. Bd4 {[%emt 0:01:32]} Nd5 {[%emt 0:00:23]} 25. Rb7 {[%emt 0:00:16]} f6 {[%emt 0:00:21]} 26. Nd3 {[%emt 0:00:21]} Nc6 {[%emt 0:00:04]} 27. Nc5 {[%emt 0:00:11]} Rab8 {[%emt 0:01:06]} 28. Rxb8 {[%emt 0:00:25]} Rxb8 {[%emt 0:00:02]} 29. e4 {[%emt 0:00:01]} Ndb4 {[%emt 0:00:04]} 30. Be3 {[%emt 0:00:13]} Rd8 {[%emt 0:00:20]} 31. Rc1 {[%emt 0:00:18]} Ne5 {[%emt 0:00:14]} 32. Rb1 {[%emt 0:00:10]} Nbc6 {[%emt 0:00:16]} 33. Nc2 {[%emt 0:00:09]} Ra8 {[%emt 0:00:07]} 34. Kg2 {[%emt 0:00:06]} Nc4 {[%emt 0:00:04]} 35. Bf4 {[%emt 0:00:02]} e5 {[%emt 0:00:06]} 36. Bc1 {[%emt 0:00:01]} Bf8 {[%emt 0:00:03]} 37. Ne6 {[%emt 0:00:01]} Bd6 {[%emt 0:00:04]} 38. Ra1 {[%emt 0:00:10]} Kf7 {[%emt 0:00:03]} 39. Nf4 {[%emt 0:00:14]} exf4 {[%emt 0:00:02]} 40. gxf4 {[%emt 0:00:01]} b4 {[%emt 0:00:03]} 41. Rb1 {[%emt 0:00:02]} a5 {[%emt 0:00:01]} 42. Ne1 {[%emt 0:00:02]} a4 {[%emt 0:00:04]} 43. Nd3 {[%emt 0:00:02]} b3 {[%emt 0:00:02]} 44. e5 {[%emt 0:00:03]} fxe5 {[%emt 0:00:01]} 45. fxe5 {[%emt 0:00:01]} N6xe5 {[%emt 0:00:02]} 46. Nf4 {[%emt 0:00:02]} Rb8 {[%emt 0:00:03]} 0-1

[Event "EWCCC Online Final 2020"]
[Site "Online"]
[Date "2020.12.21"]
[Round "2.1"]
[White "Kashlinskaya, Alina"]
[Black "Sliwicka, Alicja"]
[Result "1-0"]
[ECO "D00"]
[WhiteElo "2494"]
[BlackElo "2333"]
[Annotator "ChessBase"]
[PlyCount "99"]
[EventDate "2020.12.19"]
[EventType "team-tourn"]
[EventCountry "NET"]
[SourceTitle "playchess.com"]
[Source "ChessBase"]
[SourceQuality "1"]
[TimeControl "900+5"]

1. d4 {[%emt 0:00:00]} Nf6 {[%emt 0:00:05]} 2. Bg5 {[%emt 0:00:02]} d5 {[%emt 0:00:04]} 3. e3 {[%emt 0:00:12]} c5 {[%emt 0:00:07]} 4. Bxf6 {[%emt 0:00:14]} exf6 {[%emt 0:00:03]} 5. dxc5 {[%emt 0:00:18]} Bxc5 {[%emt 0:00:03]} 6. c3 {[%emt 0:00:31]} O-O {[%emt 0:00:08]} 7. Nf3 {[%emt 0:01:28]} f5 {[%emt 0:02:04]} 8. Be2 {[%emt 0:00:07]} Nc6 {[%emt 0:01:28]} 9. O-O {[%emt 0:00:05]} Be6 {[%emt 0:00:04]} 10. Nbd2 {[%emt 0:00:08]} Qf6 {[%emt 0:00:13]} 11. Nb3 {[%emt 0:02:11]} Bb6 {[%emt 0:00:05]} 12. a4 {[%emt 0:00:37]} a6 {[%emt 0:00:23]} 13. a5 {[%emt 0:00:03]} Ba7 {[%emt 0:00:01]} 14. Nbd4 {[%emt 0:01:02]} Nxd4 {[%emt 0:00:09]} 15. exd4 {[%emt 0:00:42]} Bb8 {[%emt 0:00:17]} 16. Re1 {[%emt 0:00:08]} g5 {[%emt 0:00:20]} 17. Bd3 {[%emt 0:00:05]} Qh6 {[%emt 0:00:44]} 18. Ne5 {[%emt 0:02:31]} Bd6 {[%emt 0:01:03]} 19. f4 {[%emt 0:00:19]} g4 {[%emt 0:02:40]} 20. g3 {[%emt 0:00:10]} Rfe8 {[%emt 0:00:27]} 21. Bf1 {[%emt 0:00:13]} f6 {[%emt 0:00:54]} 22. Nxg4 {[%emt 0:01:43]} Qg7 {[%emt 0:02:00]} 23. Ne3 {[%emt 0:00:04]} Bxf4 {[%emt 0:00:08]} 24. Bg2 {[%emt 0:00:03]} Bd6 {[%emt 0:00:45]} 25. Qf3 {[%emt 0:00:03]} f4 {[%emt 0:00:33]} 26. Nxd5 {[%emt 0:01:20]} Kh8 {[%emt 0:00:26]} 27. Nxf4 {[%emt 0:00:07]} Bg4 {[%emt 0:00:02]} 28. Qf2 {[%emt 0:01:01]} h5 {[%emt 0:00:18]} 29. Rxe8+ {[%emt 0:00:10]} Rxe8 {[%emt 0:00:02]} 30. Re1 {[%emt 0:00:03]} Rg8 {[%emt 0:00:16]} 31. Bd5 {[%emt 0:00:30]} Rf8 {[%emt 0:00:29]} 32. Ne6 {[%emt 0:00:25]} Bxe6 {[%emt 0:00:04]} 33. Rxe6 {[%emt 0:00:01]} Bb8 {[%emt 0:00:18]} 34. Qe2 {[%emt 0:00:11]} Qg5 {[%emt 0:00:08]} 35. Re8 {[%emt 0:00:12]} Qh6 {[%emt 0:00:36]} 36. Rxf8+ {[%emt 0:00:04]} Qxf8 {[%emt 0:00:02]} 37. Qxh5+ {[%emt 0:00:01]} Kg7 {[%emt 0:00:01]} 38. Qg4+ {[%emt 0:00:06]} Kh6 {[%emt 0:00:04]} 39. Bxb7 {[%emt 0:00:09]} f5 {[%emt 0:00:07]} 40. Qh4+ {[%emt 0:00:13]} Kg6 {[%emt 0:00:01]} 41. Bf3 {[%emt 0:00:24]} f4 {[%emt 0:00:08]} 42. Be4+ {[%emt 0:00:03]} Kf7 {[%emt 0:00:07]} 43. Qh7+ {[%emt 0:00:05]} Ke6 {[%emt 0:00:05]} 44. Qg6+ {[%emt 0:00:04]} Ke7 {[%emt 0:00:08]} 45. Bf5 {[%emt 0:00:13]} Qf6 {[%emt 0:00:21]} 46. Qxf6+ {[%emt 0:00:02]} Kxf6 {[%emt 0:00:02]} 47. g4 {[%emt 0:00:01]} Kg5 {[%emt 0:00:05]} 48. Kf2 {[%emt 0:00:03]} Kh4 {[%emt 0:00:10]} 49. Kf3 {[%emt 0:00:04]} Bd6 {[%emt 0:00:05]} 50. Bd3 {[%emt 0:00:08]} 1-0

[Event "EWCCC Online Final 2020"]
[Site "Online"]
[Date "2020.12.21"]
[Round "2.1"]
[White "Antolak, Julia"]
[Black "Kosteniuk, Alexandra"]
[Result "1-0"]
[ECO "B15"]
[WhiteElo "2307"]
[BlackElo "2471"]
[Annotator "ChessBase"]
[PlyCount "97"]
[EventDate "2020.12.19"]
[EventType "team-tourn"]
[EventCountry "NET"]
[SourceTitle "playchess.com"]
[Source "ChessBase"]
[SourceQuality "1"]
[TimeControl "900+5"]

1. e4 {[%emt 0:00:02]} c6 {[%emt 0:00:02]} 2. d4 {[%emt 0:00:06]} d5 {[%emt 0:00:02]} 3. Nc3 {[%emt 0:00:02]} dxe4 {[%emt 0:00:01]} 4. Nxe4 {[%emt 0:00:01]} Nf6 {[%emt 0:00:01]} 5. Nxf6+ {[%emt 0:00:02]} exf6 {[%emt 0:00:02]} 6. c3 {[%emt 0:00:01]} Bd6 {[%emt 0:00:01]} 7. Bd3 {[%emt 0:00:02]} O-O {[%emt 0:00:09]} 8. Qc2 {[%emt 0:00:01]} Re8+ {[%emt 0:00:05]} 9. Ne2 {[%emt 0:00:02]} h5 {[%emt 0:00:04]} 10. O-O {[%emt 0:00:16]} h4 {[%emt 0:00:02]} 11. Nf4 {[%emt 0:00:14]} Qc7 {[%emt 0:00:20]} 12. g3 {[%emt 0:00:05]} Nd7 {[%emt 0:00:22]} 13. Qd1 {[%emt 0:00:03]} Nf8 {[%emt 0:00:49]} 14. Qh5 {[%emt 0:00:02]} Qd7 {[%emt 0:01:33]} 15. Bd2 {[%emt 0:01:12]} Qg4 {[%emt 0:01:12]} 16. Qxg4 {[%emt 0:00:08]} Bxg4 {[%emt 0:00:02]} 17. Rfe1 {[%emt 0:00:02]} g6 {[%emt 0:02:29]} 18. Ng2 {[%emt 0:01:12]} hxg3 {[%emt 0:00:07]} 19. hxg3 {[%emt 0:00:02]} Kg7 {[%emt 0:00:10]} 20. Ne3 {[%emt 0:00:26]} Bf3 {[%emt 0:00:08]} 21. Be2 {[%emt 0:00:10]} Be4 {[%emt 0:01:16]} 22. f3 {[%emt 0:00:41]} Bxg3 {[%emt 0:00:09]} 23. fxe4 {[%emt 0:00:05]} Bxe1 {[%emt 0:00:01]} 24. Rxe1 {[%emt 0:00:06]} Rxe4 {[%emt 0:00:01]} 25. Bf3 {[%emt 0:00:42]} Ree8 {[%emt 0:00:07]} 26. c4 {[%emt 0:00:22]} Ne6 {[%emt 0:00:25]} 27. d5 {[%emt 0:02:23]} Ng5 {[%emt 0:00:03]} 28. Bg2 {[%emt 0:00:17]} Ne4 {[%emt 0:00:02]} 29. Bxe4 {[%emt 0:01:22]} Rxe4 {[%emt 0:00:03]} 30. Kf2 {[%emt 0:00:09]} f5 {[%emt 0:01:48]} 31. d6 {[%emt 0:00:53]} f6 {[%emt 0:00:20]} 32. c5 {[%emt 0:01:39]} b6 {[%emt 0:02:26]} 33. b4 {[%emt 0:00:26]} Rh8 {[%emt 0:00:17]} 34. Ng2 {[%emt 0:00:28]} Rxe1 {[%emt 0:00:22]} 35. Bxe1 {[%emt 0:00:02]} b5 {[%emt 0:00:03]} 36. Bc3 {[%emt 0:00:59]} Kf7 {[%emt 0:00:02]} 37. Nf4 {[%emt 0:00:39]} g5 {[%emt 0:01:16]} 38. Ne2 {[%emt 0:00:04]} f4 {[%emt 0:00:35]} 39. Nd4 {[%emt 0:00:11]} g4 {[%emt 0:00:01]} 40. Nxc6 {[%emt 0:00:06]} Ke6 {[%emt 0:00:10]} 41. Bxf6 {[%emt 0:01:37]} Rh2+ {[%emt 0:00:33]} 42. Kg1 {[%emt 0:00:02]} Rd2 {[%emt 0:00:01]} 43. Be5 {[%emt 0:00:58]} f3 {[%emt 0:00:21]} 44. Bf4 {[%emt 0:00:01]} Rg2+ {[%emt 0:00:30]} 45. Kf1 {[%emt 0:00:01]} g3 {[%emt 0:00:04]} 46. Nd4+ {[%emt 0:00:05]} Kf7 {[%emt 0:00:03]} 47. Bxg3 {[%emt 0:00:13]} Rxg3 {[%emt 0:00:03]} 48. c6 {[%emt 0:00:05]} Rg2 {[%emt 0:00:02]} 49. c7 {[%emt 0:00:06]} 1-0

[Event "EWCCC Online Final 2020"]
[Site "Online"]
[Date "2020.12.21"]
[Round "2.1"]
[White "Afraoui, Anaelle"]
[Black "Kulon, Klaudia"]
[Result "0-1"]
[ECO "C71"]
[WhiteElo "2106"]
[BlackElo "2347"]
[Annotator "NA"]
[PlyCount "64"]
[EventDate "2020.12.19"]
[EventType "team-tourn"]
[EventCountry "NET"]
[SourceTitle "playchess.com"]
[Source "ChessBase"]
[SourceQuality "1"]
[TimeControl "900+5"]

1. e4 {[%emt 0:00:00]} e5 {[%emt 0:00:03]} 2. Nf3 {[%emt 0:00:02]} Nc6 {[%emt 0:00:02]} 3. Bb5 {[%emt 0:00:02]} a6 {[%emt 0:00:01]} 4. Ba4 {[%emt 0:00:02]} d6 {[%emt 0:00:01]} 5. d4 {[%emt 0:00:02]} b5 {[%emt 0:00:12]} 6. Bb3 {[%emt 0:00:02]} exd4 {[%emt 0:00:01]} 7. c3 {[%emt 0:00:42]} d3 {[%emt 0:00:55]} 8. Qxd3 {[%emt 0:00:13]} Be6 {[%emt 0:00:05]} 9. Bxe6 {[%emt 0:01:04]} fxe6 {[%emt 0:00:03]} 10. O-O {[%emt 0:00:43]} Be7 {[%emt 0:01:21]} 11. a4 {[%emt 0:00:49]} Rb8 {[%emt 0:02:48]} 12. axb5 {[%emt 0:01:20]} axb5 {[%emt 0:00:02]} 13. Ra6 {[%emt 0:01:05]} Qd7 {[%emt 0:00:09]} 14. Na3 {[%emt 0:00:51]} b4 {[%emt 0:00:05]} 15. Nc2 {[%emt 0:00:42]} bxc3 {[%emt 0:00:24]} 16. Qxc3 {[%emt 0:00:14]} Nd8 {[%emt 0:00:34]} 17. Qxg7 {[%emt 0:00:38]} Bf6 {[%emt 0:00:06]} 18. Qxd7+ {[%emt 0:00:03]} Kxd7 {[%emt 0:00:01]} 19. e5 {[%emt 0:00:29]} dxe5 {[%emt 0:00:25]} 20. Rd1+ {[%emt 0:00:02]} Kc8 {[%emt 0:00:15]} 21. Re1 {[%emt 0:00:13]} Ne7 {[%emt 0:00:57]} 22. Nxe5 {[%emt 0:00:17]} Ng6 {[%emt 0:00:16]} 23. Nxg6 {[%emt 0:01:41]} hxg6 {[%emt 0:00:03]} 24. Ra2 {[%emt 0:00:24]} Rh5 {[%emt 0:00:16]} 25. Ne3 {[%emt 0:00:31]} Rhb5 {[%emt 0:00:12]} 26. Nc4 {[%emt 0:00:32]} Rc5 {[%emt 0:00:26]} 27. Ne3 {[%emt 0:00:12]} Nc6 {[%emt 0:00:40]} 28. Ra4 {[%emt 0:01:24]} Nd4 {[%emt 0:00:13]} 29. Rc4 {[%emt 0:00:37]} Rbb5 {[%emt 0:01:43]} 30. Kf1 {[%emt 0:00:53]} Nb3 {[%emt 0:00:11]} 31. Rd1 {[%emt 0:00:45]} Rxc4 {[%emt 0:00:20]} 32. Nxc4 {[%emt 0:00:03]} Rc5 {[%emt 0:00:02]} 0-1

[Event "EWCCC Online Final 2020"]
[Site "Online"]
[Date "2020.12.21"]
[Round "2.2"]
[White "Mammadzada, Gunay"]
[Black "Javakhishvili, Lela"]
[Result "1/2-1/2"]
[ECO "B45"]
[WhiteElo "2443"]
[BlackElo "2473"]
[Annotator "ChessBase"]
[PlyCount "92"]
[EventDate "2020.12.19"]
[EventType "team-tourn"]
[EventCountry "NET"]
[SourceTitle "playchess.com"]
[Source "ChessBase"]
[SourceQuality "1"]
[TimeControl "900+5"]

1. e4 {[%emt 0:00:00]} c5 {[%emt 0:00:04]} 2. Nf3 {[%emt 0:00:02]} e6 {[%emt 0:00:02]} 3. d4 {[%emt 0:00:02]} cxd4 {[%emt 0:00:01]} 4. Nxd4 {[%emt 0:00:02]} Nc6 {[%emt 0:00:03]} 5. Nc3 {[%emt 0:00:02]} Nf6 {[%emt 0:00:07]} 6. Ndb5 {[%emt 0:00:17]} Bb4 {[%emt 0:00:04]} 7. a3 {[%emt 0:00:05]} Bxc3+ {[%emt 0:00:02]} 8. Nxc3 {[%emt 0:00:02]} d5 {[%emt 0:00:02]} 9. exd5 {[%emt 0:00:01]} exd5 {[%emt 0:00:01]} 10. Bd3 {[%emt 0:00:03]} O-O {[%emt 0:00:02]} 11. O-O {[%emt 0:00:02]} d4 {[%emt 0:00:02]} 12. Ne2 {[%emt 0:00:02]} Bg4 {[%emt 0:00:01]} 13. Bg5 {[%emt 0:00:04]} h6 {[%emt 0:00:02]} 14. Bh4 {[%emt 0:00:06]} Bxe2 {[%emt 0:00:02]} 15. Bxe2 {[%emt 0:01:08]} Re8 {[%emt 0:00:03]} 16. Qd3 {[%emt 0:00:43]} Ne5 {[%emt 0:00:27]} 17. Qb3 {[%emt 0:02:10]} Ng6 {[%emt 0:01:10]} 18. Bxf6 {[%emt 0:00:16]} Qxf6 {[%emt 0:00:02]} 19. Qxb7 {[%emt 0:01:58]} Rab8 {[%emt 0:01:00]} 20. Qxa7 {[%emt 0:00:24]} Rxb2 {[%emt 0:00:34]} 21. Bd3 {[%emt 0:00:24]} Nf4 {[%emt 0:00:48]} 22. Qd7 {[%emt 0:00:04]} Rd8 {[%emt 0:02:17]} 23. Qf5 {[%emt 0:03:11]} Nxd3 {[%emt 0:02:18]} 24. Qxf6 {[%emt 0:01:20]} gxf6 {[%emt 0:00:03]} 25. cxd3 {[%emt 0:00:01]} Rb3 {[%emt 0:00:15]} 26. Rfd1 {[%emt 0:01:03]} Rc8 {[%emt 0:00:43]} 27. a4 {[%emt 0:00:27]} Rcc3 {[%emt 0:01:22]} 28. Kf1 {[%emt 0:01:07]} Rc2 {[%emt 0:00:50]} 29. Kg1 {[%emt 0:00:02]} Rbb2 {[%emt 0:00:06]} 30. Rf1 {[%emt 0:00:02]} Ra2 {[%emt 0:00:10]} 31. g4 {[%emt 0:00:40]} Kg7 {[%emt 0:00:26]} 32. Kg2 {[%emt 0:01:01]} Rxf2+ {[%emt 0:00:09]} 33. Rxf2 {[%emt 0:00:01]} Rxa1 {[%emt 0:00:02]} 34. Kf3 {[%emt 0:00:02]} Rxa4 {[%emt 0:00:02]} 35. Ke4 {[%emt 0:00:01]} Kg6 {[%emt 0:00:26]} 36. h3 {[%emt 0:00:09]} Rb4 {[%emt 0:00:22]} 37. Rf5 {[%emt 0:00:02]} Ra4 {[%emt 0:00:52]} 38. Rd5 {[%emt 0:00:02]} Ra1 {[%emt 0:00:47]} 39. Kxd4 {[%emt 0:00:06]} Ra4+ {[%emt 0:00:21]} 40. Kc5 {[%emt 0:00:22]} Ra3 {[%emt 0:00:11]} 41. Kb4 {[%emt 0:00:05]} Ra1 {[%emt 0:00:05]} 42. Kc3 {[%emt 0:00:22]} Rh1 {[%emt 0:00:03]} 43. Rh5 {[%emt 0:00:01]} f5 {[%emt 0:00:05]} 44. Rxf5 {[%emt 0:00:06]} Rxh3 {[%emt 0:00:01]} 45. Rf4 {[%emt 0:00:06]} Kg5 {[%emt 0:00:29]} 46. Rxf7 {[%emt 0:00:03]} Kxg4 {[%emt 0:00:03]} 1/2-1/2

[Event "EWCCC Online Final 2020"]
[Site "Online"]
[Date "2020.12.21"]
[Round "2.2"]
[White "Arabidze, Meri"]
[Black "Mammadova, Gulnar"]
[Result "1/2-1/2"]
[ECO "A06"]
[WhiteElo "2437"]
[BlackElo "2382"]
[Annotator "NA"]
[PlyCount "110"]
[EventDate "2020.12.19"]
[EventType "team-tourn"]
[EventCountry "NET"]
[SourceTitle "playchess.com"]
[Source "ChessBase"]
[SourceQuality "1"]
[TimeControl "900+5"]

1. Nf3 {[%emt 0:00:02]} d5 {[%emt 0:00:07]} 2. b3 {[%emt 0:00:03]} c5 {[%emt 0:00:04]} 3. e3 {[%emt 0:00:01]} Nc6 {[%emt 0:00:28]} 4. Bb5 {[%emt 0:00:06]} Bg4 {[%emt 0:01:09]} 5. h3 {[%emt 0:00:05]} Bxf3 {[%emt 0:00:12]} 6. Qxf3 {[%emt 0:00:10]} Nf6 {[%emt 0:00:02]} 7. Bb2 {[%emt 0:00:06]} a6 {[%emt 0:00:05]} 8. Bxc6+ {[%emt 0:00:12]} bxc6 {[%emt 0:00:02]} 9. d3 {[%emt 0:00:07]} g6 {[%emt 0:00:29]} 10. Nc3 {[%emt 0:00:35]} Bg7 {[%emt 0:00:25]} 11. Na4 {[%emt 0:00:11]} O-O {[%emt 0:00:42]} 12. O-O {[%emt 0:00:05]} Nd7 {[%emt 0:00:42]} 13. Bxg7 {[%emt 0:00:05]} Kxg7 {[%emt 0:00:02]} 14. c4 {[%emt 0:00:21]} e6 {[%emt 0:00:15]} 15. Qe2 {[%emt 0:00:06]} Qe7 {[%emt 0:00:31]} 16. Rac1 {[%emt 0:00:17]} a5 {[%emt 0:01:55]} 17. Qb2+ {[%emt 0:00:23]} Kg8 {[%emt 0:00:05]} 18. Rc2 {[%emt 0:00:07]} e5 {[%emt 0:00:37]} 19. cxd5 {[%emt 0:01:45]} cxd5 {[%emt 0:00:04]} 20. Rfc1 {[%emt 0:00:01]} Rfc8 {[%emt 0:00:14]} 21. Qa3 {[%emt 0:00:35]} d4 {[%emt 0:00:21]} 22. e4 {[%emt 0:01:22]} Rc6 {[%emt 0:00:09]} 23. Rc4 {[%emt 0:00:15]} Rac8 {[%emt 0:01:02]} 24. R1c2 {[%emt 0:00:11]} Kg7 {[%emt 0:00:16]} 25. Qc1 {[%emt 0:00:05]} h5 {[%emt 0:00:26]} 26. Qe1 {[%emt 0:02:29]} Qd8 {[%emt 0:00:07]} 27. Qc1 {[%emt 0:00:29]} Qe7 {[%emt 0:00:14]} 28. a3 {[%emt 0:00:05]} Rb8 {[%emt 0:01:35]} 29. b4 {[%emt 0:00:03]} axb4 {[%emt 0:00:02]} 30. axb4 {[%emt 0:00:02]} Nb6 {[%emt 0:02:10]} 31. Rxc5 {[%emt 0:00:45]} Rxc5 {[%emt 0:00:19]} 32. Nxc5 {[%emt 0:00:03]} Nd7 {[%emt 0:00:01]} 33. Nxd7 {[%emt 0:00:36]} Qxd7 {[%emt 0:00:03]} 34. Rc4 {[%emt 0:00:05]} Qa4 {[%emt 0:00:31]} 35. Qg5 {[%emt 0:02:06]} Qd1+ {[%emt 0:00:08]} 36. Kh2 {[%emt 0:00:02]} Re8 {[%emt 0:00:02]} 37. Qg3 {[%emt 0:00:26]} h4 {[%emt 0:00:20]} 38. Qf3 {[%emt 0:00:03]} Qxf3 {[%emt 0:00:26]} 39. gxf3 {[%emt 0:00:01]} Rb8 {[%emt 0:00:10]} 40. f4 {[%emt 0:00:01]} f6 {[%emt 0:00:36]} 41. Kg2 {[%emt 0:00:03]} Kf7 {[%emt 0:00:10]} 42. fxe5 {[%emt 0:00:31]} fxe5 {[%emt 0:00:02]} 43. Kf3 {[%emt 0:00:45]} Ke7 {[%emt 0:00:02]} 44. Kg4 {[%emt 0:00:42]} Rf8 {[%emt 0:00:05]} 45. b5 {[%emt 0:00:17]} Rxf2 {[%emt 0:00:25]} 46. Rb4 {[%emt 0:00:30]} Rf4+ {[%emt 0:00:07]} 47. Kg5 {[%emt 0:00:03]} Kd7 {[%emt 0:00:03]} 48. b6 {[%emt 0:00:06]} Kc8 {[%emt 0:00:01]} 49. b7+ {[%emt 0:00:16]} Kb8 {[%emt 0:00:03]} 50. Rb3 {[%emt 0:00:02]} Rf2 {[%emt 0:00:36]} 51. Kxh4 {[%emt 0:00:09]} Rg2 {[%emt 0:00:02]} 52. Rb1 {[%emt 0:00:09]} Rd2 {[%emt 0:00:07]} 53. Rb3 {[%emt 0:00:23]} Rg2 {[%emt 0:00:02]} 54. Rb5 {[%emt 0:00:02]} Rd2 {[%emt 0:00:05]} 55. Rb3 {[%emt 0:00:55]} Rg2 {[%emt 0:00:02]} 1/2-1/2

[Event "EWCCC Online Final 2020"]
[Site "Online"]
[Date "2020.12.21"]
[Round "2.3"]
[White "Sebag, Marie"]
[Black "Gara, Anita"]
[Result "1-0"]
[ECO "C42"]
[WhiteElo "2438"]
[BlackElo "2350"]
[Annotator "NA"]
[PlyCount "85"]
[EventDate "2020.12.19"]
[EventType "team-tourn"]
[EventCountry "NET"]
[SourceTitle "playchess.com"]
[Source "ChessBase"]
[SourceQuality "1"]
[TimeControl "900+5"]

1. e4 {[%emt 0:00:05]} e5 {[%emt 0:00:03]} 2. Nf3 {[%emt 0:00:03]} Nf6 {[%emt 0:00:03]} 3. Nxe5 {[%emt 0:00:09]} d6 {[%emt 0:00:03]} 4. Nf3 {[%emt 0:00:02]} Nxe4 {[%emt 0:00:02]} 5. d4 {[%emt 0:00:03]} d5 {[%emt 0:00:03]} 6. Bd3 {[%emt 0:00:02]} Bd6 {[%emt 0:00:03]} 7. O-O {[%emt 0:00:02]} O-O {[%emt 0:00:02]} 8. c4 {[%emt 0:00:02]} c6 {[%emt 0:00:03]} 9. Re1 {[%emt 0:00:02]} Bf5 {[%emt 0:00:03]} 10. Nc3 {[%emt 0:00:03]} Nxc3 {[%emt 0:02:36]} 11. bxc3 {[%emt 0:00:03]} Bxd3 {[%emt 0:00:50]} 12. Qxd3 {[%emt 0:00:03]} dxc4 {[%emt 0:00:47]} 13. Qxc4 {[%emt 0:00:02]} b5 {[%emt 0:01:22]} 14. Qd3 {[%emt 0:00:05]} Nd7 {[%emt 0:00:20]} 15. a4 {[%emt 0:00:15]} b4 {[%emt 0:01:39]} 16. c4 {[%emt 0:01:13]} c5 {[%emt 0:00:04]} 17. d5 {[%emt 0:00:08]} Qf6 {[%emt 0:00:41]} 18. Bg5 {[%emt 0:03:09]} Qg6 {[%emt 0:00:09]} 19. Qxg6 {[%emt 0:00:58]} hxg6 {[%emt 0:00:04]} 20. Be7 {[%emt 0:00:02]} Bxe7 {[%emt 0:00:06]} 21. Rxe7 {[%emt 0:00:02]} Nb6 {[%emt 0:00:10]} 22. Nd2 {[%emt 0:01:06]} Rfe8 {[%emt 0:00:13]} 23. Rxe8+ {[%emt 0:00:15]} Rxe8 {[%emt 0:00:03]} 24. a5 {[%emt 0:00:01]} Nc8 {[%emt 0:00:53]} 25. Kf1 {[%emt 0:00:37]} Nd6 {[%emt 0:00:08]} 26. a6 {[%emt 0:01:09]} Kf8 {[%emt 0:01:13]} 27. Ra5 {[%emt 0:00:25]} Rc8 {[%emt 0:00:05]} 28. Ke2 {[%emt 0:00:07]} Ke7 {[%emt 0:00:18]} 29. Kd3 {[%emt 0:00:03]} f5 {[%emt 0:03:29]} 30. Nb3 {[%emt 0:01:02]} Ne4 {[%emt 0:00:30]} 31. f3 {[%emt 0:00:06]} Nc3 {[%emt 0:00:06]} 32. Nxc5 {[%emt 0:00:46]} Kd6 {[%emt 0:00:44]} 33. Ne6 {[%emt 0:02:14]} Rb8 {[%emt 0:00:11]} 34. Nd4 {[%emt 0:00:09]} Re8 {[%emt 0:00:32]} 35. Nb5+ {[%emt 0:00:23]} Nxb5 {[%emt 0:00:04]} 36. Rxb5 {[%emt 0:00:02]} Re1 {[%emt 0:00:05]} 37. Rxb4 {[%emt 0:00:09]} Kc5 {[%emt 0:00:08]} 38. Rb5+ {[%emt 0:00:06]} Kd6 {[%emt 0:00:03]} 39. Rb7 {[%emt 0:00:03]} Rg1 {[%emt 0:00:06]} 40. Rxa7 {[%emt 0:00:08]} Rxg2 {[%emt 0:00:03]} 41. Rxg7 {[%emt 0:00:02]} Rxh2 {[%emt 0:00:04]} 42. a7 {[%emt 0:00:06]} Ra2 {[%emt 0:00:04]} 43. Rxg6+ {[%emt 0:00:02]} 1-0